Cogmind - Beta 17.1 @@@ ROGUE MODE // 2026.08.26 @ 20:47:48 Player: ATOM Result: Destroyed by G-34 Mercenary with Small Laser Performance ------------- Evolutions (0) 0 Regions Visited (4) 800 Robots Destroyed (30) 150 Value Destroyed (698) 698 Prototype IDs (0) 0 Alien Tech Used (0) 0 Bonus (0) 0 TOTAL SCORE: 1648 Bonus ------- None Cogmind --------- Core Integrity 0/250 Matter 276/300 Energy 100/100 System Corruption 1% Temperature Cool (6) Movement Core (450) Ox8 Location -9/Mines Parts ------- > --- POWER (1) -------- (None) > --- PROPULSION (2) --- (None) > --- UTILITY (2) ------ Large Storage Unit Targeting Computer > --- WEAPON (2) ------- Grenade Launcher Makeshift Spear > --- INVENTORY (15) --- Light Ion Engine Light Nuclear Core Heat Sink Large Storage Unit High-capacity Storage Unit Weapon Shielding Light Armor Plating Sensor Drone Bay Peak State ------------ > --- POWER ------------ Ion Engine > --- PROPULSION ------- Compact Wheel Compact Wheel > --- UTILITY ---------- Large Storage Unit Targeting Computer > --- WEAPON ----------- Light Cannon Grenade Launcher > --- INVENTORY -------- Light Ion Engine Light Nuclear Core Heat Sink Large Storage Unit High-capacity Storage Unit Weapon Shielding Light Armor Plating Sensor Drone Bay Grenade Launcher Makeshift Spear [Rating: 9] Favorites ----------- Power Ion Engine Engine Ion Engine Propulsion Light Treads Treads Light Treads Wheel Compact Wheel Utility Large Storage Unit Device ECM Suite Storage Large Storage Unit Processor Targeting Computer Weapon Assault Rifle Energy Gun Small Laser Ballistic Gun Assault Rifle Ballistic Cannon Light Cannon Launcher Grenade Launcher Piercing Weapon Makeshift Spear Build | -11 -10 -10 -10 -9 ------- Run | Yrd Mat Min Exi Min Slots Evolved . | . . . . . Power . | . . . . . Propulsion . | . . . . . Utility . | . . . . . Weapon . | . . . . . Parts Attached 17 | 6 5 3 . 3 Power 2 | 1 1 . . . Engine 2 | 1 1 . . . Core . | . . . . . Reactor . | . . . . . Propulsion 4 | 2 . 2 . . Treads 2 | 2 . . . . Leg . | . . . . . Wheel 2 | . . 2 . . Hover . | . . . . . Flight . | . . . . . Utility 4 | 1 3 . . . Device 1 | . 1 . . . Storage 2 | 1 1 . . . Processor 1 | . 1 . . . Hackware . | . . . . . Protection . | . . . . . Artifact . | . . . . . Weapon 7 | 2 1 1 . 3 Energy Gun 2 | 1 1 . . . Energy Cannon . | . . . . . Ballistic Gun 1 | 1 . . . . Ballistic Cannon 1 | . . 1 . . Launcher 2 | . . . . 2 Special Weapon . | . . . . . Impact Weapon . | . . . . . Slashing Weapon . | . . . . . Piercing Weapon 1 | . . . . 1 Special Melee Weapon . | . . . . . Unidentified Prototypes . | . . . . . Parts Lost 9 | . 2 2 . 5 Power 1 | . . . . 1 Propulsion 3 | . . 1 . 2 Utility 1 | . 1 . . . Weapon 4 | . 1 1 . 2 Highest Loss Streak 5 | . 1 2 . 5 To Critical Strikes . | . . . . . Average Backups 8 | 1 7 10 11 9 Power 1 | . 1 2 2 2 Propulsion 1 | . 2 1 . . Utility 3 | . 1 4 6 6 Weapon 2 | . 2 2 3 1 Tool/Special . | . . . . . Unused Backups 9 | . 1 . . 8 Power 2 | . . . . 2 Propulsion 1 | . 1 . . . Utility 6 | . . . . 6 Weapon . | . . . . . Tool/Special . | . . . . . Average Slot Usage (%) 90 | . 93 92 85 73 Engine 13 | . 14 14 14 7 Treads 18 | . 28 14 . . Wheel 8 | . . 13 28 12 Device 1 | . 2 . . . Storage 14 | . 14 14 14 14 Processor 11 | . 8 14 14 14 Energy Gun 5 | . 10 . . . Ballistic Gun 9 | . 14 7 . . Ballistic Cannon 6 | . . 14 14 7 Peak Build Rating 9 | 6 8 8 8 9 Average Rating 7 | 4 7 7 8 8 On Entrance 5 | . 6 7 8 8 Avg Prop Armor Cover (%) . | . . . . . Naked Turns . | . . . . . Heaviest Build 31 | 13 29 30 28 31 Greatest Support 40 | 40 40 40 32 32 Greatest Overweight (x) 8 | . . 1 . 8 Average Overweight (x) . | . . . . 1 Largest Inventory Capacity 15 | 8 15 15 15 15 Average Capacity 13 | 7 12 15 15 15 Most Carried 11 | 3 11 11 11 11 Average Carried 8 | 1 7 10 11 9 Final Capacity 15 | 8 15 15 15 15 Final Carried 11 | 3 11 11 11 8 Class Distribution -------------------- 100% | Mutant Dominant Class ---------------- Mutant | -10/Materials Mutant | -10/Mines Mutant | -10/Exiles Mutant | -9/Mines Resources | -11 -10 -10 -10 -9 ----------- Run | Yrd Mat Min Exi Min Matter Collected 696 | 233 234 147 . 82 Remotely . | . . . . . Salvage Created 678 | . 399 163 . 116 Parts 49 | . 29 15 . 5 Haulers Intercepted . | . . . . . Recyclers Shooed . | . . . . . Parts Field Recycled . | . . . . . Retrieved Matter . | . . . . . Parts Self-Destructed . | . . . . . Prevented . | . . . . . Parts Restored . | . . . . . Kills | -11 -10 -10 -10 -9 ------- Run | Yrd Mat Min Exi Min Combat Hostiles Destroyed 25 | . 12 8 . 5 Melee 2 | . . . . 2 Guns 12 | . 10 2 . . Cannons 6 | . . 6 . . AOE 5 | . 2 . . 3 Classes Destroyed 6 | . 3 1 . 2 Worker 1 | . . 1 . . Builder 2 | . . . . 2 Watcher 2 | . 2 . . . Swarmer 11 | . 5 6 . . Grunt 13 | . 7 2 . 4 Duelist 1 | . . . . 1 Best Kill Streak 6 | . 3 4 . 6 Combat Bots Only 5 | . 3 3 . 5 Max Kills in Single Turn 2 | . 2 1 . 1 Gunslinging . | . . . . . Exploded 2 | . 2 . . 1 Melee 1 | . . . . 1 Uniques/NPCs Destroyed . | . . . . . Combat | -11 -10 -10 -10 -9 -------- Run | Yrd Mat Min Exi Min Hostile Shots Fired 119 | . 72 23 . 24 Missed 28 | . 19 5 . 4 Hits 91 | . 53 18 . 20 Melee 4 | . . . . 4 Projectile 87 | . 53 18 . 16 Critical Strikes 5 | . 2 . . 3 Damage Taken 1148 | . 544 176 . 428 Core 257 | . 60 33 . 164 Absorbed by Shields . | . . . . . Core Remaining (%) 100 | 100 . . . . Volleys Fired 81 | . 58 14 . 9 Largest 2 | . 2 2 . 2 Hottest 60 | . 60 50 . 60 Shots Fired 142 | . 105 24 . 13 Gun 115 | . 105 10 . . Cannon 20 | . . 14 . 6 Launcher 7 | . . . . 7 Special . | . . . . . Kinetic 88 | . 58 24 . 6 Thermal 24 | . 24 . . . Explosive 7 | . . . . 7 Electromagnetic 23 | . 23 . . . Robot Hit Streak 14 | . 14 5 . 6 Robot Miss Streak 9 | . 9 6 . 2 Penetration Max . | . . . . . Secondary Targets 1 | . 1 . . . Max Gunslinging Chain 1 | . 1 . . . Shots Hit Robots 84 | . 60 13 . 11 Core Hits 46 | . 23 10 . 13 Critical Kills . | . . . . . Critical Parts Destroyed . | . . . . . Critical Strikes . | . . . . . Melee Attacks 5 | . . . . 5 Impact . | . . . . . Slashing . | . . . . . Piercing 5 | . . . . 5 Sneak Attacks 2 | . . . . 2 Combat Hostiles . | . . . . . Follow-up Attacks . | . . . . . Damage Inflicted 1872 | . 947 230 . 695 Guns 860 | . 805 55 . . Cannons 248 | . . 175 . 73 Explosions 573 | . 142 . . 431 Melee 191 | . . . . 191 Ramming . | . . . . . Kinetic 740 | . 437 230 . 73 Thermal 264 | . 264 . . . Explosive 431 | . . . . 431 Electromagnetic 246 | . 246 . . . Impact . | . . . . . Slashing . | . . . . . Piercing 191 | . . . . 191 Highest Corruption 1 | . 1 1 1 1 Average Corruption 1 | . 1 1 1 1 Corruption Purged . | . . . . . Corruption Blocked . | . . . . . Effects 13 | . 6 4 2 1 Message Errors 3 | . 2 . 1 . Matter Fused 3 | . 1 2 . . Heat Flow Errors 3 | . 1 2 . . Energy Discharges 1 | . . . . 1 Data Loss (minor) 2 | . 1 . 1 . Data Loss (major) 1 | . 1 . . . Overload Shots . | . . . . . Overflow Damage 75 | . . . . 75 Projectiles . | . . . . . Explosions 10 | . . . . 10 Melee 65 | . . . . 65 Knockbacks . | . . . . . Impact . | . . . . . Kinetic . | . . . . . Secondary . | . . . . . Self-Inflicted Damage 112 | . 20 . . 92 Shots 6 | . 1 . . 5 Rammed . | . . . . . Targets Rammed . | . . . . . Kicked . | . . . . . Crushed . | . . . . . Highest Temperature 229 | . 215 229 . 57 Average Temperature 49 | . 40 76 . 30 Received Heat Transfer 378 | . 195 48 . 135 Siege Activations . | . . . . . Martial Activations . | . . . . . Shielding Activations . | . . . . . Robots Disrupted . | . . . . . Combat Hostiles . | . . . . . Robots Corrupted . | . . . . . Combat Hostiles . | . . . . . Parts Fried . | . . . . . Impact Corruptions . | . . . . . Robots Melted . | . . . . . Combat Hostiles . | . . . . . Parts Melted . | . . . . . Heat Transferred 425 | . 425 . . . Parts Sabotaged . | . . . . . Parts Stolen . | . . . . . Parts Stripped . | . . . . . Power Chain Reactions 2 | . 2 . . . Alert | -11 -10 -10 -10 -9 ------- Run | Yrd Mat Min Exi Min Maximum Alert Level . | . . . . . Low Security (%) 100 | 100 100 100 . 100 Level 1 . | . . . . . Level 2 . | . . . . . Level 3 . | . . . . . Level 4 . | . . . . . Level 5 . | . . . . . High Security . | . . . . . Max Security . | . . . . . Peak Influence 135 | . 92 135 . 97 Initial . | . . . . . Average 32 | . 25 48 . 49 Influence Increases 761 | . 356 225 . 180 Destroy 0b10 Robot/C 500 | . 240 160 . 100 Destroy 0b10 Robot/NC 25 | . 10 5 . 10 Destroy Leader 104 | . 54 30 . 20 Trap Triggered on 0b10 20 | . 20 . . . Successful Hack 11 | . 11 . . . Disable Machine 45 | . 15 30 . . Destroy Structure 41 | . 6 . . 35 Lose Combat Pursuer 15 | . . . . 15 Influence Decreases 681 | . 356 225 . 100 Time Decay 564 | . 309 205 . 50 Lost Part 90 | . 20 20 . 50 Purge Threat 27 | . 27 . . . Squads Dispatched 4 | . 3 . . 1 Investigation 1 | . 1 . . . Extermination . | . . . . . Reinforcement 3 | . 2 . . 1 Assault . | . . . . . Garrison . | . . . . . Intercept . | . . . . . Searches Triggered . | . . . . . Construction Impeded 1 | . . . . 1 Haulers Reinforced . | . . . . . Active Scanning Responses . | . . . . . Cargo Convoy Interrupts . | . . . . . Stealth | -11 -10 -10 -10 -9 --------- Run | Yrd Mat Min Exi Min Distress Signals . | . . . . . Communications Jammed . | . . . . . Distress Signals . | . . . . . Times Spotted 42 | . 25 8 . 9 Peak Tracking Total 5 | . 4 3 . 5 Tactical Retreats 2 | . 1 . . 1 Traps | -11 -10 -10 -10 -9 ------- Run | Yrd Mat Min Exi Min Traps Triggered 1 | . 1 . . . Indirectly . | . . . . . Trap Hack Attempts . | . . . . . Triggered . | . . . . . Disarmed 8 | . 8 . . . Reprogrammed 3 | . 3 . . . Reused 3 | . 3 . . . Traps Extracted . | . . . . . Installed . | . . . . . Triggered 2 | . 2 . . . Machines | -11 -10 -10 -10 -9 ---------- Run | Yrd Mat Min Exi Min Machines Disabled 3 | . 1 2 . . Max in Single Turn 1 | . 1 1 . . Machines Repaired . | . . . . . Machines Dismantled . | . . . . . Machines Sabotaged . | . . . . . Overloaded Fab Kills . | . . . . . Hacking | -11 -10 -10 -10 -9 --------- Run | Yrd Mat Min Exi Min Machines Accessed 12 | . 7 1 4 . Terminals 5 | . 5 . . . Fabricators . | . . . . . Repair Stations . | . . . . . Recycling Units 2 | . 2 . . . Scanalyzers . | . . . . . Garrison Access . | . . . . . Total Hacks 67 | . 17 1 49 . Successful 62 | . 12 1 49 . Failed 5 | . 5 . . . Catastrophic 2 | . 2 . . . Database Lockouts . | . . . . . Manual . | . . . . . Terminals 15 | . 15 . . . Fabricators . | . . . . . Repair Stations . | . . . . . Recycling Units 2 | . 2 . . . Scanalyzers . | . . . . . Garrison Access . | . . . . . Terminal Hacks 60 | . 10 1 49 . Record 51 | . 2 . 49 . Open Door 1 | . . 1 . . Branch Access Points 1 | . 1 . . . Alert Level 1 | . 1 . . . Unreport Threat 1 | . 1 . . . Locate Traps 1 | . 1 . . . Disarm Traps 2 | . 2 . . . Reprogram Traps 1 | . 1 . . . Dispatch Records 1 | . 1 . . . Fabricator Hacks . | . . . . . Repair Station Hacks . | . . . . . Recycling Unit Hacks 2 | . 2 . . . Report Inventory 2 | . 2 . . . Scanalyzer . | . . . . . Garrison Access Hacks . | . . . . . Unauthorized Hacks . | . . . . . Terminals . | . . . . . Fabricators . | . . . . . Repair Stations . | . . . . . Recycling Units . | . . . . . Scanalyzers . | . . . . . Garrison Access . | . . . . . Data Cores Recovered . | . . . . . Used . | . . . . . Hacking Detections 4 | . 4 . . . Full Trace Events 1 | . 1 . . . Feedback Events 1 | . 1 . . . Corruption 1 | . 1 . . . Feedback Blocked . | . . . . . Robot Schematics Acquired . | . . . . . Robots Built . | . . . . . Authchips . | . . . . . Time . | . . . . . Total Robot Build Rating . | . . . . . Part Schematics Acquired . | . . . . . Parts Built . | . . . . . Authchips . | . . . . . Time . | . . . . . Total Part Build Rating . | . . . . . Part Studies Acquired . | . . . . . Parts Repaired . | . . . . . Time . | . . . . . Parts Recycled . | . . . . . Recycled Matter . | . . . . . Retrieved Matter . | . . . . . Retrieved Components . | . . . . . Parts Scanalyzed . | . . . . . Part Schematics Acquired . | . . . . . Parts Damaged . | . . . . . Bothacking | -11 -10 -10 -10 -9 ------------ Run | Yrd Mat Min Exi Min Used RIF Installer . | . . . . . Robots Hacked . | . . . . . Non-combat . | . . . . . Combat . | . . . . . Robot Hacks Applied . | . . . . . Relay Couplers Released . | . . . . . Fabnet Peak Effective % . | . . . . . Robots Rewired . | . . . . . Allies Hacked . | . . . . . Hacks Repelled . | . . . . . Allies | -11 -10 -10 -10 -9 -------- Run | Yrd Mat Min Exi Min Total Allies 2 | . . 2 . . Largest Group 2 | . . 2 1 . Highest-Rated Group 49 | . . 49 31 . Highest-Rated Ally 31 | . . 31 31 . Total Orders . | . . . . . Ally Attacks . | . . . . . Total Damage . | . . . . . Kills . | . . . . . Allies Corrupted . | . . . . . Allies Melted . | . . . . . Intel | -11 -10 -10 -10 -9 ------- Run | Yrd Mat Min Exi Min Active Infowar (turns) 255 | . 255 . . . ECM 255 | . 255 . . . Robot Analysis Total . | . . . . . Derelict Logs Recovered 1 | . . 1 . . Drone Launches . | . . . . . Drone Recoveries . | . . . . . Exploration | -11 -10 -10 -10 -9 ------------- Run | Yrd Mat Min Exi Min Turns Passed 2657 | 77 1396 623 436 125 Spaces Moved 1748 | 44 749 469 437 49 Core 18 | 7 . . . 11 Treads 962 | 37 749 176 . . Legs . | . . . . . Wheels 768 | . . 293 437 38 Hover . | . . . . . Flight . | . . . . . Fastest Speed 50 | 50 160 100 100 100 Average Speed 135 | 142 160 122 100 178 Slowest Speed 450 | 160 160 160 100 450 Overloaded Moves . | . . . . . Propulsion Burnouts . | . . . . . Robots Hopped . | . . . . . Potential Cave-ins . | . . . . . Cave-ins Triggered . | . . . . . Exploration Rate (%) 54 | 4 99 70 90 8 Regions Visited 4 Branch Regions 3 Pre-discovered Areas 1 | . . . 1 . Known Exits Taken 2 | . 1 . 1 . Unknown Exits Taken 2 | 1 . 1 . . Scrap Searched 3 | . . 3 . . Spaces Dug . | . . . . . Terrain Destroyed 61 | . 5 . . 56 Melee . | . . . . . Projectile . | . . . . . AOE 61 | . 5 . . 56 Terrain Rammed . | . . . . . Walls Destroyed . | . . . . . Machines Disabled . | . . . . . Actions | -11 -10 -10 -10 -9 --------- Run | Yrd Mat Min Exi Min Total 1898 | 58 843 492 436 69 Wait 20 | . 14 3 . 3 Move 1744 | 43 748 468 436 49 Hop . | . . . . . Pick Up 26 | 9 14 3 . . Fast Attach . | . . . . . Attach 14 | 6 3 2 . 3 Detach . | . . . . . Swap 3 | . 2 1 . . Drop 5 | . 4 1 . . Fire 81 | . 58 14 . 9 Melee 5 | . . . . 5 Ram . | . . . . . Kick . | . . . . . Crush . | . . . . . Escape Stasis . | . . . . . Rewire . | . . . . . Trap . | . . . . . Miscellaneous . | . . . . . Route ------- -11/Scrapyard -10/Materials (discovered 4 exits: [*Mat x3] / *Min) -10/Mines (discovered 3 exits: [*Mat] / *Exi / [*Sub]) -10/Exiles (discovered 2 exits: *Min x2) -9/Mines History --------- Turn | Location | Event 3 | -11/Scrapyard | Discovered new exit (range 15) 78 | -11/Scrapyard | Entered Materials 302 | -10/Materials | Build established: Mutant 308 | -10/Materials | Discovered new exit (range 12) 678 | -10/Materials | Derelicts attacked the area 769 | -10/Materials | Identified exit to Mines 877 | -10/Materials | Discovered new exit (range 16) 1188 | -10/Materials | Discovered new exit (range 16) 1265 | -10/Materials | Discovered new exit (range 15) 1474 | -10/Materials | Entered Mines 1496 | -10/Mines | Discovered new exit (range 13) 1841 | -10/Mines | A weapon hastily lodged in a ceiling crevice suddenly fell to the ground 1860 | -10/Mines | Found the Drone Emporium 1866 | -10/Mines | Found Prototype Device 2011 | -10/Mines | Discovered new exit (range 11) 2093 | -10/Mines | Deemed a non-threat by the Exiles lab entrance 2093 | -10/Mines | Discovered new exit (range 5) 2097 | -10/Mines | Entered Exiles 2097 | -10/Exiles | Accompanied by 1 ally 2098 | -10/Exiles | Identified exit to Mines 2121 | -10/Exiles | Met 8R-AWN 2127 | -10/Exiles | Led the pair of lost Derelicts to a safe place 2146 | -10/Exiles | Met EX-HEX 2198 | -10/Exiles | Met EX-DEC 2218 | -10/Exiles | Visited The Gauntlet 2339 | -10/Exiles | Learned location of Zion (-6) 2367 | -10/Exiles | Met EX-BIN 2533 | -10/Exiles | Entered Mines 2583 | -9/Mines | Core integrity fell below 50% 2597 | -9/Mines | Core integrity fell below 20% 2624 | -9/Mines | Lost 5 parts (1p2n2w) 2658 | -9/Mines | Destroyed by G-34 Mercenary with Small Laser Last Messages --------------- 02625_ R-06 Scavenger collects Welding Torch. 02628_ R-06 Scavenger collects Terrain Scanner. 02628_ Acquired 19 matter. 02632_ R-06 Scavenger collects Wheel. 02636_ R-06 Scavenger collects Structural Scanner. 02640_ The unstable cave ceiling collapses. 02640_ U-05 Engineer lays Concrete. 02642_ Acquired 50 matter. 02643_ U-05 Engineer lays Concrete. 02646_ U-05 Engineer builds a Wall. 02646_ Sneak attack on U-05 Engineer. 02646_ Destroyed Terrain Scanner. 02646_ Destroyed Wheel. 02648_ Sneak attack on U-05 Engineer. 02648_ Destroyed Welding Torch. 02649_ The unstable cave ceiling collapses. 02650_ Destroyed Wheel. 02650_ U-05 Engineer destroyed. 02652_ Acquired 5 matter. Map ----- +----------------------------------------------------+ | | | | | | | | | | | | | | | | | | | | | | | | | | | | | ???????????????????????????????????????????????? | | ???????????????????????????????????????????????? | | ???????????????????????????????????????????????? | | ????????????????#########??????????????????????? | | ???????########## ###????????????????????? | | ???????# #????????????????????? | | ???????# """ """ # #????????????????????? | | ???????# """ """ %# # #????????????????????? | | ???????# """ """ # #???#####????????????? | | ???????# # ## ##???????????? | | ???????# "" """ # %gg ????????? | | ???????# """ """ ## @% r ##????????????? | | ???????# """ """ ### ### #?????????????? | | ???????# #?#####?????? #?????????????? | | ???????# """ #?????????????? ?????????????? | | ???????# """ #???????????????#????????????? | | ???????# """ #????????????????????????????? | | ???????# #????????????????????????????? | | ???????############????????????????????????????? | | ???????????????????????????????????????????????? | | ???????????????????????????????????????????????? | | ???????????????????????????????????????????????? | | ???????????????????????????????????????????????? | | ???????????????????????????????????????????????? | | ???????????????????????????????????????????????? | | ???????????????????????????????????????????????? | | ???????????????????????????????????????????????? | | ???????????????????????????????????????????????? | | ???????????????????????????????????????????????? | | ???????????????????????????????????????????????? | | ???????????????????????????????????????????????? | | ???????????????????????????????????????????????? | | ???????????????????????????????????????????????? | | ???????????????????????????????????????????????? | | ???????????????????????????????????????????????? | | ???????????????????????????????????????????????? | +----------------------------------------------------+ Best States ------------- Heat Dissipation 25 Energy Generation 10 Energy Capacity 250 Matter Stores 300 Matter Capacity 300 Sight Range 16 Terrain Scan Density 10 ECM Strength 1 Evasion (%) 40 Targeting Accuracy 5 Recoil Reduction 2 Item Schematics ----------------- None Robot Schematics ------------------ None Fabricated ------------ Nothing Repaired ---------- Nothing Studied --------- None Alien Tech Used ----------------- None Achievements -------------- None Challenges ------------ None Game ------ Seed MappingConceptRail Manual? 0 Play Time 00:22:17 Cumulative 35.4 hours Start 2026.08.26 @ 20:02:11 End 2026.08.26 @ 20:47:48 Sessions 1 Manual Loads 0 Difficulty Rogue Special Mode None Game No. 53 Rogue 53 Adventurer 0 Explorer 0 Win Type - Total 0 Types 0/0/0/0/0/0/0/0/0/0 Lore% 18 Gallery% 21 Achievement% 18 Wizard Run 0 Options --------- Layout 1 ASCII 0 Keyboard 0 Movement Mouse Keybinds 0 Fullscreen 1 Font 16/SmallcapsGlow Map View 50x40 Zoom Use 0% Tactical HUD 1 Map Filters NONE Filters NONE Steam SD RUN: b595e418-8793-429f-add2-e38c19ab5990